bitfinex/quotes_BTCUSD_20240712
["timestamp","ask_amount","ask_price","bid_price","bid_amount"]
[1720773699600,0.287108,57386.0,57380.0,0.09905359]
[1720773699800,0.06057628,57387.0,57382.0,0.09905359]
[1720773699972,0.108,57388.0,57378.0,0.18416794]
[1720773700173,0.01825599,57385.0,57380.0,0.09905359]
[1720773700375,0.01825599,57385.0,57378.0,0.18416794]
[1720773700586,0.0126256,57384.0,57378.0,0.18416794]
[1720773700994,0.01825599,57385.0,57380.0,0.09905359]
[1720773701195,0.01825599,57385.0,57382.0,0.09905359]
[1720773701765,0.02325599,57385.0,57383.0,0.09905359]
[1720773701971,0.003,57384.0,57383.0,0.09905359]
[1720773702148,0.003,57384.0,57383.0,0.18165359]
[1720773702319,0.02325599,57385.0,57383.0,0.18165359]
[1720773702723,0.02425599,57385.0,57383.0,0.18165359]
[1720773702925,0.01925599,57385.0,57383.0,0.0826]
[1720773703303,0.02025599,57385.0,57383.0,0.0826]
[1720773703511,0.01925599,57385.0,57383.0,0.0826]
[1720773704465,0.02025599,57385.0,57383.0,0.0826]
[1720773704817,0.01925599,57385.0,57383.0,0.0826]
[1720773705021,0.02025599,57385.0,57383.0,0.0826]
[1720773705231,0.02025599,57385.0,57383.0,0.083513]
[1720773712344,0.02025599,57385.0,57384.0,0.09905359]
[1720773712544,0.02025599,57385.0,57383.0,0.083513]
[1720773712723,0.02025599,57385.0,57384.0,0.09905359]
[1720773713323,0.01925599,57385.0,57384.0,0.09905359]
[1720773713471,0.02025599,57385.0,57384.0,0.09905359]
[1720773713913,0.01925599,57385.0,57384.0,0.09905359]
[1720773714324,0.02025599,57385.0,57384.0,0.27825359]
[1720773714654,0.02025599,57385.0,57384.0,0.35765359]
[1720773715544,0.01925599,57385.0,57384.0,0.35765359]
[1720773715790,0.02025599,57385.0,57384.0,0.35765359]
[1720773716323,0.02025599,57385.0,57384.0,0.24065359]
[1720773716530,0.01925599,57385.0,57384.0,0.24065359]
[1720773716939,0.02025599,57385.0,57384.0,0.24065359]
[1720773717165,0.01825599,57385.0,57384.0,0.24065359]
[1720773717364,0.01925599,57385.0,57384.0,0.35765359]
[1720773717566,0.02025599,57385.0,57384.0,0.1416]
[1720773719277,0.02025599,57385.0,57384.0,0.24065359]
[1720773720495,0.02025599,57385.0,57384.0,0.35765359]
[1720773721222,0.29585089,57398.0,57386.0,0.09905359]
[1720773721558,0.00306353,57396.0,57386.0,0.09905359]
[1720773721784,0.00306353,57396.0,57385.0,0.1804]
[1720773721785,0.59006,57395.0,57385.0,0.0634]
[1720773721988,0.00306353,57394.0,57385.0,0.0634]
[1720773722189,0.509554,57393.0,57385.0,0.0634]
[1720773722346,0.07738509,57397.0,57385.0,0.0634]
[1720773722347,0.12917753,57392.0,57385.0,0.0634]
[1720773722540,0.126114,57391.0,57385.0,0.0634]
[1720773722768,0.00306353,57390.0,57385.0,0.0634]
[1720773722970,0.1823,57389.0,57385.0,0.0634]
[1720773723175,0.00306353,57388.0,57385.0,0.0634]
[1720773723434,0.10306353,57388.0,57385.0,0.0634]
[1720773723636,0.1,57387.0,57385.0,0.0634]
[1720773724165,0.00406353,57390.0,57385.0,0.0634]
[1720773724321,0.00406353,57390.0,57385.0,0.06314993]
[1720773724517,0.001,57390.0,57385.0,0.06414993]
[1720773724937,0.03043,57389.0,57385.0,0.06514993]
[1720773725132,0.03043,57389.0,57385.0,0.002]
[1720773725133,0.2033,57386.0,57385.0,0.002]
[1720773725343,0.2033,57386.0,57373.0,0.0766]
[1720773725344,0.05806353,57385.0,57373.0,0.0766]
[1720773725552,0.2033,57379.0,57373.0,0.0766]
[1720773725719,0.730603,57378.0,57373.0,0.0766]
[1720773725948,0.592449,57377.0,57373.0,0.0766]
[1720773726148,0.1,57376.0,57373.0,0.0766]
[1720773726352,0.411139,57375.0,57366.0,0.0765]
[1720773726700,0.1,57374.0,57366.0,0.0765]
[1720773727350,0.1,57374.0,57367.0,0.0655]
[1720773728360,0.20094641,57374.0,57367.0,0.0655]
[1720773728591,0.14137105,57373.0,57366.0,0.001]
[1720773728801,0.2033,57369.0,57366.0,0.001]
[1720773729015,0.1,57368.0,57366.0,0.001]
[1720773729247,0.3891,57368.0,57366.0,0.001]
[1720773729460,0.264648,57367.0,57366.0,0.001]
[1720773729718,0.264648,57367.0,57360.0,0.08511435]
[1720773729719,0.364648,57367.0,57360.0,0.08511435]
[1720773729902,0.364648,57367.0,57359.0,0.009097]
[1720773729903,0.877968,57366.0,57359.0,0.009097]
[1720773730110,0.517247,57365.0,57359.0,0.009097]
[1720773730324,0.1,57364.0,57359.0,0.009097]
[1720773730554,0.2033,57362.0,57359.0,0.009097]
[1720773730764,0.1,57361.0,57359.0,0.009097]
[1720773732246,0.03093,57360.0,57359.0,0.009097]
[1720773733744,0.001,57360.0,57359.0,0.009097]
[1720773734580,0.001,57360.0,57359.0,0.16815059]
[1720773734764,0.001,57360.0,57359.0,0.36875059]
[1720773735182,0.002,57360.0,57359.0,0.36875059]
[1720773735665,0.001,57360.0,57359.0,0.36875059]
[1720773736657,0.01723589,57361.0,57360.0,0.064]
[1720773736859,0.01825994,57369.0,57360.0,0.36516794]
[1720773737463,0.01825994,57369.0,57366.0,0.09805359]
[1720773737690,0.00306353,57368.0,57366.0,0.09705359]
[1720773738983,0.02325994,57369.0,57366.0,0.09705359]
[1720773739188,0.01825994,57369.0,57366.0,0.09705359]
[1720773739347,0.00306353,57368.0,57366.0,0.09796659]
[1720773740093,0.02408994,57369.0,57366.0,0.09796659]
[1720773740294,0.00306353,57368.0,57366.0,0.18308094]
[1720773740726,0.00606353,57368.0,57366.0,0.18308094]
[1720773740916,0.006,57368.0,57366.0,0.18308094]
[1720773741126,0.003,57368.0,57366.0,0.18308094]
[1720773741327,0.00606353,57368.0,57366.0,0.18308094]
[1720773741666,0.003,57368.0,57366.0,0.18308094]
[1720773741892,0.003,57368.0,57366.0,0.08602735]
[1720773742420,0.006,57368.0,57366.0,0.08602735]
[1720773743762,0.006,57368.0,57367.0,0.0619]
[1720773743943,0.006,57368.0,57367.0,0.58766959]
[1720773744143,0.006,57368.0,57367.0,0.35335359]
[1720773744699,0.01908994,57369.0,57368.0,0.21405359]
[1720773744920,0.01908994,57369.0,57368.0,0.35543933]
[1720773745405,0.01908994,57369.0,57368.0,0.41543933]
[1720773746137,0.01908994,57369.0,57368.0,0.35543933]
[1720773746349,0.01908994,57369.0,57368.0,0.35195359]
[1720773746965,0.02008994,57369.0,57368.0,0.35195359]
[1720773747699,0.02008994,57369.0,57368.0,0.1399]
[1720773747897,0.02108994,57369.0,57368.0,0.1399]
[1720773748260,0.01908994,57369.0,57368.0,0.1379]
[1720773748719,0.02108994,57369.0,57368.0,0.1399]
[1720773749545,0.02108994,57369.0,57368.0,0.23695359]
[1720773749961,0.02108994,57369.0,57368.0,0.002]
[1720773750164,0.02008994,57369.0,57366.0,0.08602735]
[1720773750367,0.01049219,57368.0,57366.0,0.08602735]
[1720773750576,0.01908994,57369.0,57366.0,0.08602735]
[1720773750790,0.25137053,57368.0,57366.0,0.08602735]
[1720773750989,0.12333827,57368.0,57366.0,0.08602735]
[1720773751192,0.1785,57367.0,57366.0,0.08602735]
[1720773751399,0.22909535,57367.0,57366.0,0.08602735]
[1720773751601,0.02008994,57369.0,57366.0,0.08602735]
[1720773751809,0.53238553,57368.0,57366.0,0.08602735]
[1720773752002,0.52938553,57368.0,57366.0,0.08602735]
[1720773752154,0.56452,57367.0,57366.0,0.08602735]
[1720773752373,0.65381735,57367.0,57360.0,0.14721435]
[1720773752547,0.56200853,57366.0,57360.0,0.08511435]
[1720773752747,0.56200853,57366.0,57359.0,0.009097]
[1720773752748,0.00306353,57366.0,57359.0,0.009097]
[1720773752951,0.2033,57363.0,57359.0,0.009097]
[1720773753178,0.791424,57362.0,57359.0,0.009097]
[1720773753503,0.62379,57361.0,57359.0,0.009097]
[1720773753710,0.1,57360.0,57359.0,0.009097]
[1720773753953,0.62315,57360.0,57359.0,0.009097]
[1720773754159,0.45345,57360.0,57359.0,0.009097]
[1720773754516,0.247631,57360.0,57359.0,0.009097]
[1720773754723,0.2927241,57360.0,57359.0,0.009097]
[1720773755329,0.382274,57360.0,57359.0,0.009097]
[1720773755922,0.395074,57360.0,57359.0,1e-08]
[1720773756119,0.898855,57359.0,57351.0,0.010586]
[1720773756433,0.20717185,57358.0,57351.0,0.010586]
[1720773756765,0.614409,57357.0,57351.0,0.010586]
[1720773756982,0.1,57356.0,57351.0,0.010586]
[1720773757189,0.551509,57355.0,57351.0,0.010586]
[1720773757357,0.1,57354.0,57351.0,0.010586]
[1720773757609,0.1576678,57354.0,57351.0,0.010586]
[1720773757798,0.1,57354.0,57351.0,0.010586]
[1720773758435,0.001,57356.0,57351.0,0.010586]
[1720773758639,0.724365,57355.0,57351.0,0.010586]
[1720773758896,0.1,57354.0,57351.0,0.010586]
[1720773759683,0.1,57354.0,57353.0,0.18216794]
[1720773759885,0.001,57357.0,57354.0,0.09605359]
[1720773760119,0.01826257,57360.0,57354.0,0.09605359]
[1720773760315,0.00306353,57359.0,57355.0,0.061]
[1720773760540,0.00306353,57359.0,57357.0,0.09605359]
[1720773761050,0.03547409,57360.0,57356.0,0.17305359]
[1720773761205,0.001,57357.0,57356.0,0.29005359]
[1720773761652,0.001,57357.0,57356.0,0.077]
[1720773761980,0.001,57357.0,57356.0,0.17305359]
[1720773762111,0.001,57357.0,57356.0,0.29005359]
[1720773763728,0.001,57357.0,57356.0,0.35175359]
[1720773763968,0.03547409,57360.0,57356.0,0.35175359]
[1720773764179,0.03547409,57360.0,57359.0,0.29816794]
[1720773764375,0.03547409,57360.0,57359.0,0.29616794]
[1720773765405,0.03547409,57360.0,57359.0,0.29816794]
[1720773765606,0.03647409,57360.0,57359.0,0.29816794]
[1720773765811,0.03547409,57360.0,57359.0,0.29616794]
[1720773767328,0.03647409,57360.0,57359.0,0.29816794]
[1720773767769,0.03747409,57360.0,57359.0,0.30216794]
[1720773770370,0.16992,57372.0,57359.0,0.30216794]
[1720773770371,0.11600691,57374.0,57361.0,0.09605359]
[1720773770617,0.79359327,57373.0,57362.0,0.00306353]
[1720773770801,0.504998,57372.0,57361.0,0.09605359]
[1720773771095,0.09395042,57371.0,57361.0,0.09605359]
[1720773771295,0.419578,57370.0,57361.0,0.09605359]
[1720773771719,0.174978,57370.0,57362.0,0.09605359]
[1720773771925,0.174978,57370.0,57360.0,0.09605359]
[1720773772173,0.02719163,57369.0,57359.0,0.08511435]
[1720773772416,0.02719163,57369.0,57359.0,0.18116794]
[1720773772592,0.708312,57368.0,57359.0,0.18116794]
[1720773772826,0.1,57367.0,57359.0,0.18208094]
[1720773773031,0.672485,57367.0,57359.0,0.18208094]
[1720773773239,0.515156,57366.0,57360.0,0.09605359]
[1720773773449,0.1,57365.0,57360.0,0.09605359]
[1720773773658,0.36391179,57365.0,57360.0,0.09605359]
[1720773773785,0.203821,57364.0,57360.0,0.09605359]
[1720773773991,0.1,57363.0,57360.0,0.09605359]
[1720773774216,0.1,57363.0,57359.0,0.000913]
[1720773774217,0.128901,57362.0,57359.0,0.000913]
[1720773774563,0.1,57361.0,57359.0,0.000913]
[1720773775113,0.1,57361.0,57360.0,0.004]
[1720773775545,1.633045,57367.0,57360.0,0.004]
[1720773775719,1.41665,57366.0,57360.0,0.004]
[1720773776099,0.1,57365.0,57360.0,0.003]
[1720773776302,0.850521,57364.0,57360.0,0.003]
[1720773776508,0.1,57363.0,57360.0,0.003]
[1720773776694,0.753848,57363.0,57359.0,0.000913]
[1720773776952,0.001,57361.0,57359.0,0.004913]
[1720773777534,0.001,57361.0,57359.0,0.003913]
[1720773778312,0.13965783,57368.0,57359.0,0.000913]
[1720773778520,1.249683,57367.0,57359.0,0.000913]
[1720773778755,0.1,57366.0,57359.0,0.000913]
[1720773778928,1.139256,57365.0,57359.0,0.000913]
[1720773779131,0.1,57364.0,57359.0,0.000913]
[1720773779342,0.48584,57363.0,57359.0,0.000913]
[1720773779543,0.1,57362.0,57359.0,0.000913]
[1720773779763,0.337031,57361.0,57359.0,0.000913]
[1720773780026,0.1,57360.0,57359.0,0.000913]
[1720773780994,0.11769901,57368.0,57359.0,0.000913]
[1720773781143,0.1,57368.0,57359.0,0.000913]
[1720773781353,1.231223,57367.0,57359.0,0.000913]
[1720773781559,0.1,57366.0,57361.0,0.09605359]
[1720773781941,0.1,57366.0,57362.0,0.09605359]
[1720773782168,0.3655,57365.0,57363.0,0.09605359]
[1720773782367,0.1,57364.0,57363.0,0.09605359]
[1720773783687,0.017,57367.0,57365.0,0.09605359]
[1720773783893,0.009,57367.0,57366.0,0.082]
[1720773784328,0.009,57367.0,57366.0,0.079]
[1720773784508,0.01754912,57369.0,57368.0,0.09605359]
[1720773784668,0.1,57374.0,57368.0,0.09605359]
[1720773784887,0.317491,57373.0,57368.0,0.09305359]
[1720773785109,0.252878,57372.0,57368.0,0.08605359]
[1720773785310,0.600703,57375.0,57368.0,0.07905359]
[1720773785512,0.537803,57375.0,57368.0,0.07905359]
[1720773785866,0.06000691,57374.0,57366.0,0.079]
[1720773786044,0.650078,57373.0,57366.0,0.079]
[1720773786176,0.626078,57373.0,57366.0,0.079]
[1720773786618,0.626078,57373.0,57368.0,0.001]
[1720773787020,0.1,57372.0,57368.0,0.001]
[1720773787223,0.1,57372.0,57366.0,0.079]
[1720773787224,0.563178,57371.0,57366.0,0.079]
[1720773787442,0.1,57370.0,57366.0,0.08]
[1720773787627,0.540686,57369.0,57366.0,0.08]
[1720773787801,0.1,57368.0,57359.0,0.000913]
[1720773788007,0.2033,57366.0,57356.0,0.03999309]
[1720773788209,2.3957364,57365.0,57354.0,0.03999309]
[1720773788411,2.3957364,57365.0,57351.0,0.125586]
[1720773788412,0.2033,57357.0,57351.0,0.010586]
[1720773788613,0.46754,57356.0,57351.0,0.010586]
[1720773788813,0.1,57355.0,57345.0,0.64126794]
[1720773789017,0.174724,57355.0,57345.0,0.64126794]
[1720773789223,0.799597,57354.0,57345.0,0.64126794]
[1720773789441,0.1,57353.0,57345.0,0.16416794]
[1720773789636,0.293513,57352.0,57345.0,0.16416794]
[1720773789867,0.3002643,57351.0,57345.0,0.16416794]
[1720773790121,0.352922,57350.0,57345.0,0.16416794]
[1720773790331,0.52314,57346.0,57345.0,0.16416794]
[1720773790543,0.9719,57346.0,57345.0,0.27916794]
[1720773790948,0.9719,57346.0,57345.0,0.41806794]
[1720773791358,0.9719,57346.0,57345.0,0.42206794]
[1720773791759,0.9729,57346.0,57345.0,0.42206794]
[1720773791937,1.32166,57346.0,57345.0,0.42206794]
[1720773792609,1.32166,57346.0,57345.0,0.41806794]
[1720773793015,0.9739,57346.0,57345.0,0.41806794]
[1720773793232,0.102,57346.0,57345.0,0.47806794]
[1720773793445,0.002,57346.0,57345.0,0.47806794]
[1720773793862,0.002,57346.0,57345.0,0.41806794]
[1720773794755,0.17638,57346.0,57345.0,0.41806794]
[1720773795004,0.17638,57346.0,57345.0,0.47806794]
[1720773796161,0.17638,57346.0,57345.0,0.41806794]
[1720773797163,0.54731585,57346.0,57345.0,0.33295359]
[1720773799705,0.89607585,57346.0,57345.0,0.33295359]
[1720773800345,1.24483585,57346.0,57345.0,0.33295359]
[1720773800948,1.24483585,57346.0,57345.0,0.21795359]
[1720773801324,1.36931944,57346.0,57345.0,0.21795359]
[1720773801693,0.871915,57345.0,57344.0,0.07905359]
[1720773801898,0.523158,57344.0,57343.0,0.07905359]
[1720773802101,0.174389,57343.0,57342.0,0.14525359]
[1720773802306,0.871945,57343.0,57342.0,0.14525359]
[1720773802506,1.220723,57343.0,57342.0,0.14525359]
[1720773803712,1.221723,57343.0,57342.0,0.14525359]
[1720773804066,1.222723,57343.0,57342.0,0.14525359]
[1720773804675,1.222723,57343.0,57342.0,0.26025359]
[1720773805059,1.222723,57343.0,57342.0,0.14525359]
[1720773806011,1.571501,57343.0,57342.0,0.07905359]
[1720773806577,1.571501,57343.0,57342.0,0.07996659]
[1720773806987,1.571501,57343.0,57342.0,0.19496659]
[1720773807424,1.571501,57343.0,57342.0,0.07996659]
[1720773808856,1.222723,57343.0,57342.0,0.19496659]
[1720773811396,1.222723,57343.0,57342.0,0.27756659]
[1720773811888,0.002,57343.0,57342.0,0.39906659]
[1720773812068,0.002,57343.0,57342.0,0.40213012]
[1720773812286,0.176389,57343.0,57342.0,0.40213012]
[1720773812490,0.176389,57343.0,57342.0,0.39906659]
[1720773812770,0.002,57343.0,57342.0,0.39906659]
[1720773813393,0.002,57343.0,57342.0,0.40213012]
[1720773814338,0.002,57343.0,57342.0,0.57652212]
[1720773814581,0.002,57343.0,57342.0,0.92530612]
[1720773814800,0.002,57343.0,57342.0,0.92224259]
[1720773815199,0.002,57343.0,57342.0,0.92530612]
[1720773818935,0.002,57343.0,57342.0,0.92224259]
[1720773819249,0.002,57343.0,57342.0,0.92381054]
[1720773819448,0.002,57343.0,57342.0,0.92224259]
[1720773820167,0.002,57343.0,57342.0,1.27102659]
[1720773820576,0.002,57343.0,57342.0,1.57102659]
[1720773820809,0.002,57343.0,57342.0,1.59402659]
[1720773820991,0.002,57343.0,57342.0,1.94281059]
[1720773821757,0.002,57343.0,57342.0,1.74281059]
[1720773822158,0.002,57343.0,57342.0,1.94281059]
[1720773823298,0.002,57343.0,57342.0,1.74281059]
[1720773823415,0.002,57343.0,57342.0,1.94281059]
[1720773824883,0.001,57343.0,57342.0,1.94281059]
[1720773825313,0.002,57343.0,57342.0,1.94281059]
[1720773825520,0.001,57343.0,57342.0,1.94281059]
[1720773825721,0.00033,57351.0,57350.0,0.42842059]
[1720773825929,0.00033,57351.0,57350.0,0.57538412]
[1720773826113,0.00033,57351.0,57350.0,0.34101712]
[1720773826317,0.00033,57351.0,57350.0,0.39795359]
[1720773826949,0.00133,57351.0,57350.0,0.39795359]
[1720773827469,0.00233,57351.0,57350.0,0.34695359]
[1720773827603,0.00233,57351.0,57350.0,0.40695359]
[1720773832514,0.00233,57351.0,57350.0,0.20305359]
[1720773832719,0.525423,57351.0,57350.0,0.20305359]
[1720773835625,0.524923,57351.0,57350.0,0.20305359]
[1720773837982,0.873652,57351.0,57350.0,0.20305359]
[1720773838814,0.874482,57351.0,57350.0,0.20305359]
[1720773839440,1.22306942,57351.0,57350.0,0.20305359]
[1720773845048,0.87434042,57351.0,57350.0,0.26305359]
[1720773846021,0.00251842,57351.0,57350.0,0.40505359]
[1720773846223,0.00251842,57351.0,57350.0,1.00965559]
[1720773846425,0.00251842,57351.0,57350.0,2.00712559]
[1720773846635,0.00251842,57351.0,57350.0,2.03012559]
[1720773847116,0.00251842,57351.0,57350.0,2.02112559]
[1720773847117,0.00151842,57351.0,57350.0,2.02112559]
[1720773847314,0.00083,57351.0,57350.0,2.02112559]
[1720773847564,0.00283,57351.0,57350.0,2.03512559]
[1720773847966,0.00283,57351.0,57350.0,2.02612559]
[1720773848196,0.00183,57351.0,57350.0,2.02612559]
[1720773848337,0.00283,57351.0,57350.0,2.03512559]
[1720773860783,0.00283,57351.0,57350.0,1.05615559]
[1720773861058,0.00283,57351.0,57350.0,0.20805359]
[1720773861166,0.00283,57351.0,57350.0,0.26805359]
[1720773862099,0.00283,57351.0,57350.0,0.27154055]
[1720773862316,0.00183,57351.0,57350.0,0.34804055]
[1720773862751,0.00283,57351.0,57350.0,0.36204055]
[1720773862962,0.00183,57351.0,57350.0,0.34804055]
[1720773863404,0.00283,57351.0,57350.0,0.36204055]
[1720773863619,0.00283,57351.0,57350.0,0.35304055]
[1720773863778,0.00183,57351.0,57350.0,0.35304055]
[1720773863978,0.00283,57351.0,57350.0,0.36704055]
[1720773864396,0.348691,57358.0,57357.0,0.19405359]
[1720773864698,0.523034,57358.0,57357.0,0.19405359]
[1720773865412,0.871725,57358.0,57357.0,0.19405359]
[1720773865617,0.872725,57358.0,57357.0,0.20605359]
[1720773866014,0.525034,57358.0,57357.0,0.21805359]
[1720773866597,0.873725,57358.0,57357.0,0.21805359]
[1720773871097,0.525034,57358.0,57357.0,0.21805359]
[1720773871672,0.525864,57358.0,57357.0,0.21805359]
[1720773876985,0.874555,57358.0,57357.0,0.21805359]
[1720773877947,0.940355,57358.0,57357.0,0.21805359]
[1720773878800,1.50565565,57358.0,57357.0,0.024]
[1720773878968,0.174361,57352.0,57351.0,0.07905359]
[1720773879145,1.30203,57352.0,57351.0,0.07905359]
[1720773879558,1.30203,57352.0,57351.0,0.19405359]
[1720773881192,1.30303,57352.0,57351.0,0.20705359]
[1720773882249,1.34231948,57352.0,57351.0,0.20705359]
[1720773882477,1.34331948,57352.0,57351.0,0.21105359]
[1720773882681,1.26181948,57352.0,57351.0,0.21105359]
[1720773884149,0.91309648,57352.0,57351.0,0.21105359]
[1720773888184,0.9340509,57352.0,57351.0,0.21105359]
[1720773902734,0.2366049,57352.0,57351.0,0.27105359]
[1720773903029,0.02295442,57352.0,57351.0,0.44848112]
[1720773903177,0.02295442,57352.0,57351.0,0.27411712]
[1720773903741,0.02295442,57352.0,57351.0,0.27760391]
[1720773903955,0.02295442,57352.0,57351.0,0.27851691]
[1720773904158,0.02378442,57352.0,57351.0,0.27851691]
[1720773904610,0.02378442,57352.0,57351.0,0.21851691]
[1720773904796,0.02378442,57352.0,57351.0,0.21503012]
[1720773908375,0.02378442,57352.0,57351.0,0.21196659]
[1720773908606,0.10688442,57352.0,57351.0,0.017913]
[1720773908814,0.10688442,57352.0,57351.0,0.02097653]
[1720773909036,0.10688442,57352.0,57351.0,0.10003012]
[1720773909235,0.10688442,57352.0,57351.0,0.09696659]
[1720773909447,0.10688442,57352.0,57351.0,0.21196659]
[1720773909638,0.02378442,57352.0,57351.0,0.21196659]
[1720773909849,0.02378442,57352.0,57351.0,0.27266659]
[1720773909975,0.02378442,57352.0,57351.0,0.33266659]
[1720773910199,0.02378442,57352.0,57351.0,0.27573012]
[1720773911713,0.02378442,57352.0,57351.0,0.33573012]
[1720773912743,0.02378442,57352.0,57351.0,0.59298107]
[1720773913112,0.02378442,57352.0,57351.0,0.93864654]
[1720773913390,0.00283,57352.0,57351.0,1.02014654]
[1720773913562,0.00283,57352.0,57351.0,1.02321007]
[1720773914167,0.00283,57352.0,57351.0,0.94171007]
[1720773915106,0.00283,57352.0,57351.0,1.36887554]
[1720773918462,0.00283,57352.0,57351.0,1.02014654]
[1720773918659,0.00283,57352.0,57351.0,0.93864654]
[1720773919025,0.00283,57352.0,57351.0,1.37180379]
[1720773919672,0.00283,57352.0,57351.0,1.36887554]
[1720773920988,0.00283,57352.0,57351.0,2.03711759]
[1720773922404,0.00183,57352.0,57351.0,2.02411759]
[1720773922751,0.00283,57352.0,57351.0,2.03811759]
[1720773923374,0.00183,57352.0,57351.0,2.03411759]
[1720773923583,0.00183,57352.0,57351.0,1.93411759]
[1720773923712,0.00283,57352.0,57351.0,2.04811759]
[1720773924706,0.00283,57352.0,57351.0,1.76661759]
[1720773924879,0.00283,57352.0,57351.0,1.74811759]
[1720773925108,0.00283,57352.0,57351.0,1.84811759]
[1720773925480,0.00283,57352.0,57351.0,1.74811759]
[1720773925682,0.00283,57352.0,57351.0,0.62043059]
[1720773926014,0.00283,57352.0,57351.0,1.05065959]
[1720773926553,0.00283,57352.0,57351.0,0.52756659]
[1720773926977,0.00283,57352.0,57351.0,0.50456659]
[1720773927202,0.00283,57352.0,57351.0,0.67893059]
[1720773929425,0.00283,57352.0,57351.0,0.50456659]
[1720773934921,0.00283,57352.0,57351.0,0.67893059]
[1720773936123,0.00283,57352.0,57351.0,0.50456659]
[1720773936570,0.09017245,57371.0,57365.0,0.07905359]
[1720773936735,1.13094641,57380.0,57370.0,0.00306353]
[1720773936912,0.0815,57371.0,57370.0,0.00306353]
[1720773937107,0.548066,57371.0,57370.0,0.00306353]
[1720773937706,0.548066,57371.0,57365.0,0.07905359]
[1720773937897,0.0815,57366.0,57364.0,0.07905359]
[1720773939123,0.0815,57366.0,57365.0,0.07905359]
[1720773939305,0.0825,57366.0,57365.0,0.07905359]
[1720773939457,0.1249,57366.0,57365.0,0.07905359]
[1720773939841,0.2249,57366.0,57365.0,0.07905359]
[1720773939961,0.2239,57366.0,57365.0,0.07905359]
[1720773940854,0.2249,57366.0,57365.0,0.08505359]
[1720773941415,0.2259,57366.0,57365.0,0.09105359]
[1720773942017,0.2259,57366.0,57365.0,0.012]
[1720773943544,0.00093366,57374.0,57365.0,0.012]
[1720773943784,0.0815,57367.0,57366.0,0.00306353]
[1720773944184,0.0815,57367.0,57365.0,0.012]
[1720773944546,0.0815,57367.0,57365.0,0.006]
[1720773944900,0.0815,57367.0,57365.0,0.00906353]
[1720773945107,0.0815,57367.0,57365.0,0.00306353]
[1720773946116,0.0815,57367.0,57365.0,0.00806353]
[1720773946313,0.0815,57367.0,57365.0,0.005]
[1720773946740,0.0815,57367.0,57365.0,0.01]
[1720773947713,0.06676583,57378.0,57365.0,0.01]
[1720773947938,1.701908,57377.0,57366.0,0.00306353]
[1720773948148,1.701908,57377.0,57365.0,0.01]
[1720773948149,0.0815,57366.0,57365.0,0.01]
[1720773948707,0.0815,57366.0,57365.0,0.005]
[1720773949084,0.0815,57366.0,57365.0,0.006]
[1720773949458,0.0815,57366.0,57365.0,0.005]
[1720773949850,0.0815,57366.0,57365.0,0.17055759]
[1720773949851,0.001,57366.0,57365.0,0.17055759]
[1720773950057,0.001,57366.0,57365.0,0.26023417]
[1720773950260,0.001,57366.0,57365.0,0.25523417]
[1720773950537,0.001,57366.0,57365.0,0.34034852]
[1720773950781,0.001,57366.0,57365.0,0.53312189]
[1720773951312,0.002,57366.0,57365.0,0.53912189]
[1720773951971,0.002,57366.0,57365.0,1.94087589]
[1720773952140,0.002,57366.0,57365.0,1.96387589]
[1720773952723,0.001,57366.0,57365.0,2.16387589]
[1720773953143,0.002,57366.0,57365.0,2.17087589]
[1720773953344,0.002,57366.0,57365.0,2.51951989]
[1720773953543,0.0015,57391.0,57390.0,0.12372146]
[1720773954885,0.02110006,57391.0,57390.0,0.12372146]
[1720773955084,0.1025,57391.0,57390.0,0.12372146]
[1720773955685,0.1045,57391.0,57390.0,0.12372146]
[1720773956063,0.0045,57391.0,57385.0,0.12372146]
[1720773956262,0.0815,57388.0,57385.0,0.12372146]
[1720773956444,0.0815,57388.0,57386.0,0.12372146]
[1720773956648,0.0815,57388.0,57385.0,0.12372146]
[1720773956902,0.0815,57388.0,57386.0,0.12372146]
[1720773957094,0.001,57387.0,57385.0,0.12372146]
[1720773957335,0.001,57387.0,57384.0,0.12372146]
[1720773957655,0.001,57387.0,57386.0,0.003]
[1720773957896,0.0825,57387.0,57386.0,0.003]
[1720773958128,0.0825,57387.0,57381.0,0.12372146]
[1720773958305,0.0815,57382.0,57379.0,0.12372146]
[1720773958501,0.0815,57382.0,57378.0,0.12372146]
[1720773959290,0.001,57387.0,57378.0,0.12372146]
[1720773959528,0.0815,57381.0,57378.0,0.12372146]
[1720773959774,0.0815,57381.0,57378.0,0.13372146]
[1720773960133,0.0815,57381.0,57378.0,0.01]
[1720773960332,0.319046,57380.0,57378.0,0.01]
[1720773960535,0.502671,57379.0,57373.0,0.00306353]
[1720773960736,0.0815,57375.0,57371.0,0.12372146]
[1720773960940,0.0815,57372.0,57371.0,0.12372146]
[1720773961521,0.0815,57372.0,57361.0,0.4771]
[1720773961522,0.1,57379.0,57378.0,0.12372146]
[1720773961697,0.0815,57383.0,57379.0,0.23872146]
[1720773961906,0.002,57387.0,57385.0,0.12372146]
[1720773961907,0.0815,57386.0,57385.0,0.12372146]
[1720773962252,0.0815,57386.0,57385.0,0.12272146]
[1720773962455,0.0815,57386.0,57378.0,0.18922146]
[1720773962659,0.0815,57380.0,57378.0,0.12272146]
[1720773963603,0.0815,57380.0,57379.0,0.12272146]
[1720773963906,0.0815,57380.0,57379.0,0.23772146]
[1720773964931,0.101,57388.0,57379.0,0.23872146]
[1720773965132,0.101,57388.0,57386.0,0.12272146]
[1720773965133,0.1,57388.0,57386.0,0.12272146]
[1720773965360,0.1,57388.0,57387.0,0.12272146]
[1720773965562,0.1815,57391.0,57387.0,0.12272146]
[1720773965719,0.1815,57391.0,57389.0,0.12272146]
[1720773965989,0.43660985,57401.0,57390.0,0.12272146]
[1720773966172,0.43660985,57401.0,57391.0,0.00306353]
[1720773966173,0.0815,57393.0,57391.0,0.00306353]
[1720773966592,0.001,57401.0,57391.0,0.00306353]
[1720773966593,0.001,57401.0,57392.0,0.11272146]
[1720773966922,0.334939,57400.0,57393.0,0.11178499]
[1720773967070,0.0815,57394.0,57392.0,0.11178499]